fUST/lending_fUST_20240830
["ID","MTS","AMOUNT","RATE_DAILY","PERIOD"]
[336639752,1724993441306,-358.82622534,0.00023549,5]
[336639753,1724993441316,-584.98602932,0.00023549,5]
[336639754,1724993441326,-500.0,0.00023549,5]
[336639755,1724993441336,-2392.51,0.00023549,5]
[336639756,1724993441346,-500.0,0.00023549,5]
[336639757,1724993441359,-2314.66,0.00023549,5]
[336639758,1724993441370,-500.0,0.00023549,5]
[336639759,1724993441379,-500.0,0.00023549,5]
[336639760,1724993441388,-1989.71,0.00023549,5]
[336639761,1724993441399,-1077.28,0.00023549,5]
[336639762,1724993441409,-682.36,0.00023549,5]
[336639763,1724993441419,-500.0,0.00023549,5]
[336639764,1724993441429,-704.67,0.00023549,5]
[336639765,1724993441439,-720.99,0.00023549,5]
[336639766,1724993441449,-500.0,0.00023549,5]
[336639767,1724993441458,-4740.89,0.00023549,5]
[336639768,1724993441467,-500.0,0.00023551,5]
[336639769,1724993441477,-500.0,0.00023573,2]
[336639770,1724993441487,-1005.03,0.00023823,5]
[336639771,1724993441497,-500.0,0.00023823,5]
[336639772,1724993441507,-2392.51,0.00023823,5]
[336639773,1724993441516,-500.0,0.00023823,5]
[336639774,1724993441526,-2314.66,0.00023823,5]
[336639775,1724993441536,-500.0,0.00023823,5]
[336639776,1724993441546,-500.0,0.00023823,5]
[336639777,1724993441556,-1989.71,0.00023823,5]
[336639778,1724993441565,-1077.28,0.00023823,5]
[336639779,1724993441575,-682.36,0.00023823,5]
[336639780,1724993441584,-500.0,0.00023823,5]
[336639781,1724993441593,-704.67,0.00023823,5]
[336639782,1724993441603,-720.99,0.00023823,5]
[336639783,1724993441613,-530.64,0.00023823,5]
[336639784,1724993441622,-500.0,0.00023825,5]
[336639785,1724993441631,-271.80165431,0.00023847,2]
[336639786,1724993441641,-1000.0,0.00024019,2]
[336639787,1724993441651,-1005.03,0.00024097,5]
[336639788,1724993441660,-500.0,0.00024097,5]
[336639789,1724993441669,-2392.51,0.00024097,5]
[336639790,1724993441680,-500.0,0.00024097,5]
[336639791,1724993441689,-2314.66,0.00024097,5]
[336639792,1724993441699,-500.0,0.00024097,5]
[336639793,1724993441708,-500.0,0.00024097,5]
[336639794,1724993441719,-1989.71,0.00024097,5]
[336639795,1724993441728,-1077.28,0.00024097,5]
[336639796,1724993441737,-682.36,0.00024097,5]
[336639797,1724993441746,-500.0,0.00024097,5]
[336639798,1724993441756,-704.67,0.00024097,5]
[336639799,1724993441766,-720.99,0.00024097,5]
[336639800,1724993441776,-500.0,0.00024099,5]
[336639801,1724993441785,-2119.97366285,0.00024104,2]
[336639802,1724993441794,-150.112233,0.000243,3]
[336639803,1724993441803,-1005.03,0.00024371,5]
[336639804,1724993441814,-500.0,0.00024371,5]
[336639805,1724993441823,-2392.51,0.00024371,5]
[336639806,1724993441832,-500.0,0.00024371,5]
[336639807,1724993441842,-2314.66,0.00024371,5]
[336639808,1724993441852,-500.0,0.00024371,5]
[336639809,1724993441861,-500.0,0.00024371,5]
[336639810,1724993441871,-1989.71,0.00024371,5]
[336639811,1724993441880,-1077.28,0.00024371,5]
[336639812,1724993441889,-682.36,0.00024371,5]
[336639813,1724993441898,-500.0,0.00024371,5]
[336639814,1724993441908,-704.67,0.00024371,5]
[336639815,1724993441917,-720.99,0.00024371,5]
[336639816,1724993441926,-500.0,0.00024373,5]
[336639817,1724993441936,-467.02785296,0.00024405,2]
[336639818,1724993441945,-1005.03,0.00024645,5]
[336639819,1724993441955,-500.0,0.00024645,5]
[336639820,1724993441964,-2392.51,0.00024645,5]
[336639821,1724993441974,-500.0,0.00024645,5]
[336639822,1724993441983,-2314.66,0.00024645,5]
[336639823,1724993441993,-500.0,0.00024645,5]
[336639824,1724993442002,-500.0,0.00024645,5]
[336639825,1724993442011,-1989.71,0.00024645,5]
[336639826,1724993442021,-1077.28,0.00024645,5]
[336639827,1724993442031,-682.36,0.00024645,5]
[336639828,1724993442040,-500.0,0.00024645,5]
[336639829,1724993442049,-704.67,0.00024645,5]
[336639830,1724993442058,-720.99,0.00024645,5]
[336639831,1724993442068,-500.0,0.00024647,5]
[336639832,1724993442077,-200.0,0.00024658,15]
[336639833,1724993442087,-280.109884,0.00024859,2]
[336639834,1724993442096,-1500.0,0.00024917,2]
[336639835,1724993442106,-1005.03,0.00024919,5]
[336639836,1724993442210,-246.88089761,0.00024919,5]
[336639837,1724993442220,-2392.51,0.00024919,5]
[336639838,1724993442230,-500.0,0.00024919,5]
[336639839,1724993442239,-2314.66,0.00024919,5]
[336639840,1724993442248,-500.0,0.00024919,5]
[336639841,1724993442257,-500.0,0.00024919,5]
[336639842,1724993442266,-1989.71,0.00024919,5]
[336639843,1724993442275,-1077.28,0.00024919,5]
[336639844,1724993442285,-682.36,0.00024919,5]
[336639845,1724993442294,-500.0,0.00024919,5]
[336639846,1724993442303,-704.67,0.00024919,5]
[336639847,1724993442312,-720.99,0.00024919,5]
[336639848,1724993442322,-197.52,0.00025,2]
[336639849,1724993442331,-1005.03,0.00025193,5]
[336639850,1724993442340,-2392.51,0.00025193,5]
[336639851,1724993442349,-500.0,0.00025193,5]
[336639852,1724993442363,-2314.66,0.00025193,5]
[336639853,1724993442372,-168.89407614,0.00025193,5]
[336639854,1724993442382,-500.0,0.00025193,5]
[336639855,1724993442391,-1989.71,0.00025193,5]
[336639856,1724993442402,-1077.28,0.00025193,5]
[336639857,1724993442411,-682.36,0.00025193,5]
[336639858,1724993442420,-303.82419814,0.00025193,5]
[336639859,1724993442430,-704.67,0.00025193,5]
[336639860,1724993442442,-720.99,0.00025193,5]
[336639861,1724993442451,-1005.03,0.00025467,5]
[336639862,1724993442461,-2392.51,0.00025467,5]
[336639863,1724993442470,-500.0,0.00025467,5]
[336639864,1724993442479,-2314.66,0.00025467,5]
[336639865,1724993442490,-500.0,0.00025467,5]
[336639866,1724993442503,-1989.71,0.00025467,5]
[336639867,1724993442513,-1077.28,0.00025467,5]
[336639868,1724993442523,-682.36,0.00025467,5]
[336639869,1724993442535,-704.67,0.00025467,5]
[336639870,1724993442544,-720.99,0.00025467,5]
[336639871,1724993442553,-150.112233,0.000256,5]
[336639872,1724993442562,-465.10139265,0.00025626,2]
[336639873,1724993442572,-1005.03,0.00025741,5]
[336639874,1724993442581,-2392.51,0.00025741,5]
[336639875,1724993442591,-169.72,0.00025741,5]
[336639876,1724993442601,-2314.66,0.00025741,5]
[336639877,1724993442610,-500.0,0.00025741,5]
[336639878,1724993442619,-1989.71,0.00025741,5]
[336639879,1724993442628,-1077.28,0.00025741,5]
[336639880,1724993442638,-682.36,0.00025741,5]
[336639881,1724993442648,-704.67,0.00025741,5]
[336639882,1724993442658,-720.99,0.00025741,5]
[336639883,1724993442668,-465.2142507,0.00025987,2]
[336639884,1724993442677,-1005.03,0.00026015,5]
[336639885,1724993442686,-2392.51,0.00026015,5]
[336639886,1724993442695,-2314.66,0.00026015,5]
[336639887,1724993442704,-560.31486987,0.00026015,5]
[336639888,1724993442713,-1989.71,0.00026015,5]
[336639889,1724993442722,-1077.28,0.00026015,5]
[336639890,1724993442732,-682.36,0.00026015,5]
[336639891,1724993442741,-704.67,0.00026015,5]
[336639892,1724993442751,-720.99,0.00026015,5]
[336639894,1724993442761,-1005.03,0.00026289,5]
[336639895,1724993442770,-2392.51,0.00026289,5]
[336639896,1724993442779,-2314.66,0.00026289,5]
[336639897,1724993442789,-1989.71,0.00026289,5]
[336639898,1724993442798,-1077.28,0.00026289,5]
[336639900,1724993442807,-682.36,0.00026289,5]
[336639902,1724993442817,-704.67,0.00026289,5]
[336639904,1724993442826,-720.99,0.00026289,5]
[336639906,1724993442835,-1099.77739786,0.0002629,2]
[336639908,1724993442844,-2119.97366285,0.00026402,2]
[336639910,1724993442853,-1005.03,0.00026563,5]
[336639911,1724993442862,-2392.51,0.00026563,5]
[336639912,1724993442871,-2314.66,0.00026563,5]
[336639913,1724993442881,-1989.71,0.00026563,5]
[336639914,1724993442890,-1077.28,0.00026563,5]
[336639915,1724993442899,-682.36,0.00026563,5]
[336639916,1724993442909,-704.67,0.00026563,5]
[336639917,1724993442918,-720.99,0.00026563,5]
[336639918,1724993442927,-153.8,0.000266,31]
[336639919,1724993442937,-153.8,0.000266,31]
[336639920,1724993442946,-153.8,0.000266,31]
[336639921,1724993442955,-1005.03,0.00026837,5]
[336639922,1724993442964,-2392.51,0.00026837,5]
[336639923,1724993442973,-2314.66,0.00026837,5]
[336639924,1724993442983,-1989.71,0.00026837,5]
[336639925,1724993442992,-1077.28,0.00026837,5]
[336639926,1724993443001,-682.36,0.00026837,5]
[336639927,1724993443011,-704.67,0.00026837,5]
[336639928,1724993443020,-720.99,0.00026837,5]
[336639929,1724993443029,-500.0,0.0002688,2]
[336639930,1724993443038,-150.112233,0.000269,5]
[336639931,1724993443048,-500.0,0.00026907,2]
[336639932,1724993443057,-500.0,0.00027,2]
[336639933,1724993443067,-500.0,0.0002703,2]
[336639934,1724993443076,-500.0,0.00027041,2]
[336639935,1724993443086,-1005.03,0.00027111,5]
[336639936,1724993443095,-2392.51,0.00027111,5]
[336639937,1724993443105,-2314.66,0.00027111,5]
[336639938,1724993443114,-1989.71,0.00027111,5]
[336639939,1724993443123,-1077.28,0.00027111,5]
[336639940,1724993443134,-682.36,0.00027111,5]
[336639941,1724993443146,-704.67,0.00027111,5]
[336639942,1724993443155,-720.99,0.00027111,5]
[336639943,1724993443164,-522.0,0.00027128,2]
[336639944,1724993443173,-150.0,0.00027128,2]
[336639945,1724993443183,-150.244,0.00027128,2]
[336639946,1724993443194,-500.0,0.00027292,2]
[336639947,1724993443205,-600.0,0.00027325,2]
[336639948,1724993443214,-500.0,0.0002733,2]
[336639949,1724993443224,-500.0,0.00027342,2]
[336639950,1724993443234,-500.0,0.00027379,2]
[336639951,1724993443245,-1005.19651924,0.00027385,5]
[336639952,1724993443255,-2392.64723145,0.00027385,5]
[336639953,1724993443265,-2314.84999999,0.00027385,5]
[336639955,1724993443275,-1989.8343555,0.00027385,5]
[336639956,1724993443285,-1077.49810781,0.00027385,5]
[336639957,1724993443294,-682.53128372,0.00027385,5]
[336639958,1724993443304,-704.84,0.00027385,5]
[336639959,1724993443315,-721.0,0.00027385,5]
[336639960,1724993443324,-500.0,0.00027397,2]
[336639961,1724993443334,-500.0,0.00027397,2]
[336639962,1724993443344,-500.0,0.00027397,2]
[336639963,1724993443359,-500.0,0.00027397,2]
[336639964,1724993443369,-500.0,0.00027397,5]
[336639965,1724993443378,-500.0,0.00027397,5]
[336639966,1724993443388,-500.0,0.00027397,5]
[336639967,1724993443399,-500.0,0.00027397,5]
[336639968,1724993443410,-500.0,0.00027397,5]
[336639969,1724993443420,-500.0,0.00027397,5]
[336639970,1724993443434,-500.0,0.00027397,5]
[336639971,1724993443444,-500.0,0.00027397,5]
[336639972,1724993443455,-609.9281248,0.00027397,5]
[336639973,1724993443465,-395.10521127,0.00027397,2]
[336639974,1724993443474,-691.66,0.000274,7]
[336639975,1724993443483,-17391.61,0.000274,14]
[336639976,1724993443492,-500.0,0.00027573,2]
[336639977,1724993443502,-593.26359141,0.00027599,2]
[336639978,1724993443511,-500.0,0.00027623,2]
[336639979,1724993443520,-502.76233625,0.00027641,2]
[336639980,1724993443529,-500.0,0.00027732,2]
[336639981,1724993443539,-500.0,0.00027734,2]
[336639982,1724993443551,-500.0,0.00027788,2]
[336639983,1724993443561,-270.88761066,0.00027792,5]
[336639984,1724993443572,-500.0,0.00027792,2]
[336639985,1724993443584,-500.0,0.00027798,2]
[336639986,1724993443595,-500.0,0.00027873,2]
[336639987,1724993443605,-500.0,0.00028033,2]
[336639988,1724993443614,-300.0,0.00028047,2]
[336639989,1724993443623,-500.0,0.000281,2]
[336639990,1724993443632,-500.0,0.00028136,2]
[336639991,1724993443641,-500.0,0.00028163,2]
[336639992,1724993443651,-978.52174994,0.00028166,2]
[336639993,1724993443660,-500.0,0.00028184,2]
[336639994,1724993443670,-500.0,0.00028197,2]
[336639995,1724993443681,-150.112233,0.000282,8]
[336639996,1724993443690,-500.0,0.00028208,2]
[336639997,1724993443701,-200.10146,0.00028274,2]
[336639998,1724993443713,-299.079973,0.00028274,2]
[336639999,1724993443723,-211.286309,0.00028274,2]
[336640000,1724993443733,-281.880616,0.00028274,2]
[336640001,1724993443743,-4667.5308594,0.00028325,2]
[336640002,1724993443754,-500.0,0.00028336,2]
[336640003,1724993443766,-500.0,0.00028363,2]
[336640004,1724993443777,-500.0,0.00028433,2]
[336640005,1724993443788,-500.0,0.00028444,2]
[336640006,1724993443797,-500.0,0.00028483,2]
[336640007,1724993443807,-860.01316705,0.00028485,2]
[336640008,1724993443819,-622.68576521,0.00028525,2]
[336640009,1724993443829,-500.0,0.00028623,2]
[336640010,1724993443839,-214.828558,0.00028627,2]
[336640011,1724993443851,-528.76503,0.00028627,2]
[336640012,1724993443861,-859.314233,0.00028627,2]
[336640013,1724993443871,-793.147544,0.00028627,2]
[336640014,1724993443880,-200.10146,0.00028627,2]
[336640015,1724993443890,-299.079973,0.00028627,2]
[336640016,1724993443899,-211.286309,0.00028627,2]
[336640017,1724993443912,-281.880616,0.00028627,2]
[336640018,1724993443921,-2119.97366285,0.000287,2]
[336640019,1724993443930,-696.23265929,0.00028763,2]
[336640020,1724993443940,-626.22694371,0.00028767,120]
[336640021,1724993443949,-191.146792,0.0002879,2]
[336640022,1724993443958,-403.72,0.000288,14]
[336640023,1724993443967,-214.828558,0.0002898,2]
[336640024,1724993443976,-528.76503,0.0002898,2]
[336640025,1724993443985,-859.314233,0.0002898,2]
[336640026,1724993443994,-793.147544,0.0002898,2]
[336640027,1724993444003,-200.10146,0.0002898,2]
[336640028,1724993444013,-299.079973,0.0002898,2]
[336640029,1724993444022,-211.286309,0.0002898,2]
[336640030,1724993444032,-281.880616,0.0002898,2]
[336640031,1724993444041,-150.112233,0.00029,10]
[336640032,1724993444051,-852.68118146,0.00029,2]
[336640033,1724993444060,-214.828558,0.00029334,2]
[336640034,1724993444070,-528.76503,0.00029334,2]
[336640035,1724993444079,-859.314233,0.00029334,2]
[336640036,1724993444089,-793.147544,0.00029334,2]
[336640037,1724993444099,-200.10146,0.00029334,2]
[336640038,1724993444108,-299.079973,0.00029334,2]
[336640040,1724993444118,-211.286309,0.00029334,2]
[336640042,1724993444127,-281.880616,0.00029334,2]
[336640043,1724993444136,-691.66,0.000294,7]
[336640045,1724993444146,-150.112233,0.000295,6]
[336640047,1724993444156,-214.828558,0.00029687,2]
[336640049,1724993444166,-202.654079,0.00029687,2]
[336640051,1724993444178,-528.76503,0.00029687,2]
[336640053,1724993444187,-859.314233,0.00029687,2]
[336640055,1724993444198,-793.147544,0.00029687,2]
[336640057,1724993444207,-200.10146,0.00029687,2]
[336640058,1724993444216,-299.079973,0.00029687,2]
[336640060,1724993444226,-211.286309,0.00029687,2]
[336640062,1724993444235,-281.880616,0.00029687,2]
[336640063,1724993444245,-1643.721898,0.000299,5]
[336640064,1724993444254,-151.0,0.0003,120]
[336640065,1724993444264,-151.0,0.0003,120]
[336640066,1724993444275,-150.112233,0.0003,5]
[336640067,1724993444284,-1076.11250587,0.0003,7]
[336640068,1724993444294,-712.78604361,0.0003,15]
[336640069,1724993444304,-217.93081472,0.0003,120]
[336640070,1724993444314,-204.49079461,0.0003,30]
[336640071,1724993444323,-450.0,0.0003,120]
[336640072,1724993444333,-1008.40744986,0.0003,7]
[336640073,1724993444342,-300.00075164,0.0003,7]
[336640074,1724993444354,-272.0,0.0003,2]
[336640075,1724993444365,-252.0,0.0003,2]
[336640076,1724993444375,-271.72460976,0.0003,2]
[336640077,1724993444384,-150.112233,0.000301,10]
[336640078,1724993444395,-522.0,0.00030128,2]
[336640079,1724993444404,-150.0,0.00030128,2]
[336640080,1724993444419,-150.0,0.00030128,2]
[336640081,1724993444428,-291.0,0.00030137,2]
[336640082,1724993444440,-153.8,0.000304,31]
[336640083,1724993444450,-153.8,0.000304,31]
[336640084,1724993444459,-153.8,0.000304,31]
[336640085,1724993444469,-153.8,0.000304,31]
[336640086,1724993444479,-153.8,0.000304,31]
[336640087,1724993444488,-153.8,0.000304,31]
[336640088,1724993444498,-1000.0,0.000304,5]
[336640089,1724993444507,-272.0,0.00030411,2]
[336640090,1724993444517,-186.0055248,0.0003065,2]
[336640091,1724993444527,-150.112233,0.000308,10]
[336640092,1724993444537,-1000.0,0.000309,5]
[336640093,1724993444547,-151.0,0.00030932,120]
[336640094,1724993444556,-2119.97366285,0.00030998,2]
[336640095,1724993444566,-403.72,0.00031,14]
[336640096,1724993444575,-303.0,0.00031,2]
[336640097,1724993444585,-1531.20356766,0.00031009,2]
[336640098,1724993444595,-280.109884,0.00031089,2]
[336640099,1724993444605,-534.503743,0.00031098,7]
[336640100,1724993444616,-151.0,0.00031098,7]
[336640101,1724993444626,-151.0,0.00031098,7]
[336640102,1724993444636,-252.628132,0.00031098,7]
[336640103,1724993444645,-151.0,0.00031098,2]
[336640104,1724993444659,-252.628132,0.00031098,7]
[336640105,1724993444668,-151.0,0.00031098,7]
[336640106,1724993444678,-151.0,0.00031098,7]
[336640107,1724993444688,-839.13,0.000311,14]
[336640108,1724993444698,-200.0,0.00031107,30]
[336640109,1724993444708,-300.0,0.00031107,30]
[336640110,1724993444719,-150.0,0.00031107,14]
[336640111,1724993444728,-150.0,0.00031107,14]
[336640112,1724993444738,-200.0,0.00031107,14]
[336640113,1724993444750,-200.99337458,0.00031107,120]
[336640114,1724993444761,-44839.01664277,0.00031107,7]
[336640115,1724993444771,-235.47572121,0.00031107,120]
[336640116,1724993444781,-88512.12300229,0.00031107,2]
[336640117,1724993444791,-2715.3613473,0.00031107,30]
[336640118,1724993444890,-300.0,0.00031107,2]
[336640119,1724993444900,-790.6446827,0.00031107,2]
[336640120,1724993444912,-11250.36656043,0.00031107,32]
[336640121,1724993444921,-154.60575532,0.00031107,2]
[336640122,1724993444931,-6058.7239494,0.00031107,120]
[336640123,1724993444941,-151.0,0.00031107,7]
[336640124,1724993444951,-151.0,0.00031107,7]
[336640125,1724993444960,-252.669945,0.00031107,7]
[336640126,1724993444971,-151.0,0.00031107,7]
[336640127,1724993444980,-151.0,0.00031107,7]
[336640128,1724993444990,-151.0,0.00031107,7]
[336640129,1724993445000,-151.0,0.00031107,7]
[336640130,1724993445010,-151.0,0.00031107,7]
[336640131,1724993445020,-151.0,0.00031107,7]
[336640132,1724993445029,-151.0,0.00031107,7]
[336640133,1724993445040,-151.0,0.00031107,7]
[336640134,1724993445051,-349.016352,0.00031107,7]
[336640135,1724993445062,-349.016352,0.00031107,7]
[336640136,1724993445072,-181.406223,0.00031107,7]
[336640137,1724993445082,-181.406223,0.00031107,7]
[336640138,1724993445092,-151.0,0.00031107,7]
[336640139,1724993445103,-151.0,0.00031107,7]
[336640140,1724993445113,-151.0,0.00031107,7]
[336640141,1724993445122,-151.0,0.00031107,7]
[336640142,1724993445132,-151.0,0.00031107,7]
[336640143,1724993445141,-151.0,0.00031107,7]
[336640144,1724993445151,-151.0,0.00031107,7]
[336640145,1724993445161,-151.0,0.00031114,7]
[336640147,1724993445171,-150.112233,0.000312,10]
[336640149,1724993445180,-150.112233,0.000315,7]
[336640151,1724993445190,-151.0,0.00031507,120]
[336640153,1724993445200,-691.66,0.000316,7]
[336640155,1724993445211,-272.0,0.00031644,2]
[336640157,1724993445220,-151.0,0.00031863,120]
[336640158,1724993445230,-150.0,0.00032,30]
[336640160,1724993445239,-150.112233,0.000321,7]
[336640162,1724993445249,-150.112233,0.000323,6]
[336640164,1724993445260,-839.13,0.000325,14]
[336640165,1724993445271,-150.112233,0.000325,7]
[336640166,1724993445282,-151.0,0.00032795,120]
[336640167,1724993445293,-500.0,0.00032876,60]
[336640168,1724993445302,-500.0,0.00032876,60]
[336640169,1724993445312,-500.0,0.00032876,60]
[336640170,1724993445322,-501.27887223,0.00032876,60]
[336640171,1724993445332,-400.0,0.00032877,60]
[336640172,1724993445342,-150.0,0.00033,30]
[336640173,1724993445352,-150.112233,0.00033,5]
[336640174,1724993445366,-247.783809,0.00033,7]
[336640175,1724993445375,-151.401104,0.00033,7]
[336640176,1724993445386,-151.0,0.00033,7]
[336640177,1724993445396,-151.0,0.00033,7]
[336640178,1724993445407,-199.018912,0.00033,7]
[336640179,1724993445416,-199.018912,0.00033,7]
[336640180,1724993445425,-151.0,0.00033,7]
[336640181,1724993445436,-151.0,0.00033,7]
[336640182,1724993445446,-151.0,0.00033,7]
[336640183,1724993445456,-151.0,0.00033,7]
[336640184,1724993445466,-151.0,0.00033,7]
[336640185,1724993445475,-258.9115,0.00033,7]
[336640186,1724993445485,-258.9115,0.00033,7]
[336640187,1724993445495,-151.0,0.00033,7]
[336640188,1724993445505,-162.821563,0.00033,7]
[336640189,1724993445514,-151.0,0.00033,7]
[336640190,1724993445525,-162.821563,0.00033,7]
[336640191,1724993445536,-151.0,0.00033,7]
[336640192,1724993445547,-257.316507,0.00033,7]
[336640193,1724993445556,-257.316507,0.00033,7]
[336640194,1724993445566,-151.0,0.00033,7]
[336640195,1724993445576,-151.0,0.00033,7]
[336640196,1724993445587,-378.904083,0.00033,7]
[336640197,1724993445597,-151.0,0.00033,7]
[336640198,1724993445607,-151.0,0.00033,7]
[336640199,1724993445617,-151.0,0.00033,7]
[336640200,1724993445626,-370.970059,0.00033,7]
[336640201,1724993445636,-370.970059,0.00033,7]
[336640202,1724993445646,-274.980428,0.00033,7]
[336640203,1724993445658,-274.980428,0.00033,7]
[336640204,1724993445670,-227.822006,0.00033,7]
[336640205,1724993445680,-227.822006,0.00033,7]
[336640206,1724993445691,-151.0,0.00033,7]
[336640207,1724993445702,-151.0,0.00033,7]
[336640208,1724993445712,-151.0,0.00033,7]
[336640209,1724993445723,-245.054587,0.00033,7]
[336640210,1724993445733,-245.054587,0.00033,7]
[336640211,1724993445743,-151.0,0.00033,7]
[336640213,1724993445755,-151.0,0.00033,7]
[336640215,1724993445764,-252.0,0.00033,2]
[336640217,1724993445775,-252.0,0.00033,2]
[336640219,1724993445785,-151.0,0.00033,7]
[336640220,1724993445795,-151.0,0.00033,7]
[336640221,1724993445806,-156.0,0.00033,2]
[336640223,1724993445816,-151.0,0.00033,7]
[336640225,1724993445826,-151.0,0.00033,7]
[336640227,1724993445835,-151.0,0.00033014,120]
[336640228,1724993445845,-403.72,0.000331,14]
[336640229,1724993445855,-522.0,0.00033128,2]
[336640230,1724993445864,-150.0,0.00033128,2]
[336640231,1724993445874,-409.5167953,0.00033139,2]
[336640233,1724993445884,-409.5167953,0.00033139,2]
[336640234,1724993445894,-272.0,0.00033226,2]
[336640235,1724993445904,-150.112233,0.000334,10]
[336640236,1724993445915,-150.112233,0.000334,9]
[336640237,1724993445926,-151.0,0.00033726,120]
[336640239,1724993445937,-691.66,0.000338,30]
[336640241,1724993445948,-207.8243323,0.00033961,2]
[336640243,1724993445958,-409.5167953,0.00033961,2]
[336640244,1724993445968,-409.5167953,0.00033961,2]
[336640246,1724993445979,-409.5167953,0.00033961,2]
[336640248,1724993445991,-409.5167953,0.00033961,2]
[336640250,1724993446001,-409.5167953,0.00033961,2]
[336640251,1724993446011,-409.5167953,0.00033961,2]
[336640253,1724993446021,-409.5167953,0.00033961,2]
[336640255,1724993446032,-409.5167953,0.00033961,2]
[336640257,1724993446044,-407.6699076,0.00033961,2]
[336640258,1724993446054,-1000.0,0.00033984,2]
[336640260,1724993446066,-1000.0,0.00034,3]
[336640262,1724993446077,-306.65,0.00034,10]
[336640264,1724993446087,-200.0,0.00034,30]
[336640266,1724993446099,-527.86181787,0.00034,5]
[336640268,1724993446110,-839.13,0.00034,14]
[336640269,1724993446122,-478.886592,0.00034,30]
[336640270,1724993446131,-150.112233,0.00034,8]
[336640271,1724993446141,-153.8,0.000342,31]
[336640272,1724993446150,-153.8,0.000342,31]
[336640273,1724993446159,-153.8,0.000342,31]
[336640274,1724993446169,-153.8,0.000342,31]
[336640275,1724993446178,-153.8,0.000342,31]
[336640276,1724993446190,-153.8,0.000342,31]
[336640277,1724993446201,-1000.0,0.00034302,2]
[336640278,1724993446211,-1039.12265841,0.00034397,2]
[336640279,1724993446221,-1000.0,0.0003448,2]
[336640280,1724993446230,-150.112233,0.000345,5]
[336640281,1724993446240,-150.112233,0.000345,6]
[336640282,1724993446249,-151.0,0.00034521,120]
[336640283,1724993446258,-156.0,0.00034521,2]
[336640284,1724993446268,-1000.0,0.00034554,2]
[336640285,1724993446278,-150.112233,0.000346,5]
[336640286,1724993446287,-151.0,0.00034658,120]
[336640287,1724993446297,-150.112233,0.000347,5]
[336640288,1724993446308,-1292.33404097,0.00034728,12]
[336640289,1724993446318,-1000.0,0.00034897,2]
[336640290,1724993446329,-27500.64184527,0.000349,2]
[336640291,1724993446338,-19066.3853493,0.000349,2]
[336640292,1724993446349,-151.0,0.000349,7]
[336640293,1724993446362,-151.0,0.000349,7]
[336640294,1724993446374,-151.0,0.000349,7]
[336640295,1724993446385,-252.628132,0.000349,7]
[336640296,1724993446396,-151.0,0.000349,2]
[336640297,1724993446407,-252.628132,0.000349,7]
[336640298,1724993446417,-151.0,0.000349,7]
[336640299,1724993446429,-239.665147,0.000349,7]
[336640300,1724993446440,-151.0,0.000349,7]
[336640301,1724993446453,-151.0,0.000349,7]